bitfinex/quotes_SOLUSD_20251216
["timestamp","ask_amount","ask_price","bid_price","bid_amount"]
[1765888957125,8.52,128.52,128.51,17.29144052]
[1765888958714,0.76,128.61,128.53,0.7]
[1765888958915,0.76,128.61,128.58,8.80994492]
[1765888958916,9.28,128.61,128.58,8.80994492]
[1765888959120,0.66,128.6,128.58,8.80994492]
[1765888960324,8.62,128.61,128.6,8.80994492]
[1765888961316,0.1,128.61,128.6,33.12323046]
[1765888963204,0.1,128.61,128.6,33.12201032]
[1765888965907,0.1,128.61,128.6,36.23666868]
[1765888971543,0.1,128.62,128.61,78.38539006]
[1765888971719,0.1,128.62,128.61,81.8743145]
[1765888972121,0.1,128.62,128.61,90.4943145]
[1765888975036,0.1,128.62,128.61,78.38539006]
[1765888975641,0.76,128.62,128.61,78.38539006]
[1765888975943,0.1,128.62,128.61,78.38539006]
[1765888977146,0.76,128.62,128.61,78.38539006]
[1765888978440,0.76,128.62,128.61,70.60994492]
[1765888978938,0.76,128.62,128.61,8.80994492]
[1765888980121,3.54892444,128.62,128.61,8.80994492]
[1765888980347,0.76,128.62,128.61,8.80994492]
[1765888981150,0.1,128.62,128.61,8.80994492]
[1765888981761,0.76,128.62,128.61,8.72994492]
[1765888982331,0.76,128.62,128.61,16.50539006]
[1765888982963,0.76,128.62,128.61,8.72994492]
[1765888987635,0.1,128.62,128.61,17.20539006]
[1765888988533,0.1,128.62,128.61,16.50539006]
[1765888988731,0.1,128.62,128.61,17.20539006]
[1765888989354,0.1,128.62,128.61,78.30539006]
[1765888991542,0.1,128.62,128.61,81.7943145]
[1765888994251,0.76,128.62,128.61,78.30539006]
[1765888994870,0.1,128.62,128.61,78.30539006]
[1765888995171,0.76,128.62,128.61,70.52994492]
[1765888995565,0.76,128.62,128.61,78.30539006]
[1765888997371,0.1,128.62,128.61,78.30539006]
[1765888997769,0.1,128.62,128.61,79.00539006]
[1765888999174,0.1,128.62,128.61,83.3638445]
[1765889000178,0.1,128.62,128.61,79.00539006]
[1765889000953,0.76,128.62,128.61,78.30539006]
[1765889001370,0.1,128.62,128.61,78.30539006]
[1765889002476,0.76,128.62,128.61,78.30539006]
[1765889003153,0.76,128.62,128.61,70.52994492]
[1765889004358,0.76,128.62,128.61,78.30539006]
[1765889006362,0.76,128.62,128.61,70.52994492]
[1765889007966,0.26,128.62,128.61,70.52994492]
[1765889009058,12.23209777,128.64,128.61,70.52994492]
[1765889009476,12.23209777,128.64,128.61,78.30537931]
[1765889009885,0.66,128.63,128.61,78.30537931]
[1765889012486,0.1,128.64,128.62,0.7]
[1765889012674,0.76,128.64,128.63,8.80994492]
[1765889013285,0.76,128.64,128.62,8.80994492]
[1765889013477,0.1,128.64,128.62,9.50994492]
[1765889014588,0.82,128.64,128.62,9.50994492]
[1765889014886,0.72,128.63,128.62,8.80994492]
[1765889015382,0.82,128.64,128.62,8.80994492]
[1765889015585,0.82,128.64,128.62,16.58473936]
[1765889015798,0.1,128.64,128.62,17.25473936]
[1765889017286,0.82,128.64,128.62,16.58473936]
[1765889019097,0.82,128.64,128.62,78.38473936]
[1765889019266,8.62,128.64,128.63,0.67]
[1765889020399,8.62,128.64,128.62,82.7431938]
[1765889020583,8.62,128.64,128.62,79.05473936]
[1765889021597,13.69845444,128.64,128.62,70.60994492]
[1765889021977,9.34,128.64,128.62,78.38475998]
[1765889022392,9.34,128.64,128.62,70.60994492]
[1765889022800,0.72,128.63,128.62,70.60994492]
[1765889022972,0.72,128.63,128.62,8.80994492]
[1765889025402,0.72,128.63,128.6,20.10894368]
[1765889025403,4.35845444,128.63,128.56,12.23101653]
[1765889025699,8.62,128.64,128.56,0.67]
[1765889025700,0.72,128.6,128.56,0.67]
[1765889025886,8.52,128.59,128.57,0.67]
[1765889026074,8.52,128.59,128.58,8.80994492]
[1765889027901,8.52,128.59,128.58,9.47994492]
[1765889028087,8.52,128.59,128.58,17.25720421]
[1765889029986,8.52,128.59,128.58,21.61565865]
[1765889031002,8.52,128.59,128.58,83.51565865]
[1765889031882,8.52,128.59,128.58,83.51655921]
[1765889032478,8.52,128.59,128.58,79.15720421]
[1765889032677,8.52,128.59,128.58,83.51655921]
[1765889033283,8.52,128.59,128.58,79.15720421]
[1765889033712,21.37421037,128.62,128.58,78.48720421]
[1765889033904,17.01485537,128.62,128.59,0.67]
[1765889034106,21.37421037,128.62,128.59,62.57]
[1765889034916,17.01485537,128.62,128.59,62.57]
[1765889035093,9.24,128.62,128.6,9.47994492]
[1765889035294,8.52,128.62,128.6,70.70994492]
[1765889035496,8.52,128.62,128.61,9.47994492]
[1765889037313,8.52,128.62,128.61,83.51474506]
[1765889038705,8.52,128.62,128.61,79.15539006]
[1765889038899,0.1,128.64,128.62,16.58449652]
[1765889039106,0.1,128.64,128.62,79.15449652]
[1765889039522,8.62,128.64,128.62,79.15449652]
[1765889039995,9.34,128.64,128.62,78.48449652]
[1765889041198,0.1,128.64,128.62,79.15449652]
[1765889041399,8.62,128.64,128.62,79.15449652]
[1765889042217,0.1,128.64,128.62,78.48449652]
[1765889042398,9.34,128.64,128.62,78.48449652]
[1765889043008,9.34,128.64,128.62,79.15449652]
[1765889043320,0.1,128.64,128.62,79.15449652]
[1765889043523,8.62,128.64,128.62,79.15449652]
[1765889044220,0.1,128.64,128.62,79.15449652]
[1765889044421,8.62,128.64,128.63,9.47994492]
[1765889045018,8.62,128.64,128.63,71.37994492]
[1765889045430,8.62,128.64,128.63,79.1541811]
[1765889045797,8.62,128.64,128.63,78.4841811]
[1765889046005,8.62,128.64,128.63,70.70994492]
[1765889046311,8.62,128.64,128.63,79.1541811]
[1765889049034,8.62,128.64,128.63,83.5135361]
[1765889052706,0.1,128.64,128.63,34.6606273]
[1765889055537,0.1,128.64,128.63,33.0888351]
[1765889057708,0.1,128.64,128.63,16.5841811]
[1765889057928,0.1,128.64,128.63,20.0417439]
[1765889059243,0.1,128.64,128.63,33.0888351]
[1765889060642,0.1,128.64,128.63,94.9888351]
[1765889064216,0.1,128.65,128.64,9.47994492]
[1765889064422,0.1,128.66,128.64,76.28507052]
[1765889064624,0.1,128.66,128.65,9.47994492]
[1765889064842,0.1,128.68,128.67,9.47994492]
[1765889065046,0.1,128.68,128.67,12.26750772]
[1765889066257,0.1,128.68,128.67,79.0517643]
[1765889066460,0.1,128.68,128.67,20.0393271]
[1765889067349,0.1,128.68,128.67,17.2517643]
[1765889067550,0.1,128.68,128.67,20.0393271]
[1765889069378,0.1,128.68,128.67,19.3693271]
[1765889069971,0.1,128.68,128.67,20.0393271]
[1765889075555,0.1,128.68,128.67,81.8393271]
[1765889076077,0.81,128.68,128.67,78.3817643]
[1765889076756,0.1,128.68,128.67,78.3817643]
[1765889076960,0.1,128.68,128.67,81.1693271]
[1765889077476,0.1,128.68,128.67,81.8493271]
[1765889085697,0.1,128.68,128.67,78.3817643]
[1765889085857,0.1,128.68,128.67,81.8493271]
[1765889090071,0.1,128.68,128.67,79.0617643]
[1765889090588,0.1,128.68,128.67,81.8493271]
[1765889090990,0.1,128.68,128.67,20.0493271]
[1765889091583,0.1,128.68,128.67,17.2617643]
[1765889091774,0.1,128.68,128.67,20.0493271]
[1765889091970,0.1,128.68,128.67,17.2617643]
[1765889092383,0.1,128.68,128.67,20.0493271]
[1765889094077,0.1,128.68,128.67,81.8493271]
[1765889099740,0.1,128.68,128.67,79.0617643]
[1765889099885,0.1,128.68,128.67,81.8493271]
[1765889100082,0.1,128.68,128.67,81.84735678]
[1765889100297,0.1,128.68,128.67,79.0617643]
[1765889100471,0.1,128.7,128.69,21.85703612]
[1765889100670,0.1,128.71,128.7,9.48994492]
[1765889100906,0.1,128.71,128.7,76.86112988]
[1765889101107,0.1,128.71,128.7,74.0755374]
[1765889101403,0.1,128.71,128.7,71.28994492]
[1765889101607,0.1,128.71,128.7,74.0755374]
[1765889101904,0.1,128.72,128.71,12.2755374]
[1765889102266,0.1,128.72,128.71,9.48994492]
[1765889102507,0.1,128.72,128.71,17.259349]
[1765889102689,0.1,128.72,128.71,20.04494148]
[1765889103207,0.1,128.73,128.72,22.53703612]
[1765889103417,0.1,128.73,128.72,87.1226286]
[1765889103998,0.1,128.73,128.72,90.23389527]
[1765889104408,0.1,128.73,128.72,98.00269576]
[1765889105089,0.1,128.73,128.72,94.89142909]
[1765889105497,0.1,128.73,128.72,98.00269576]
[1765889106297,0.1,128.75,128.74,87.00262859]
[1765889106812,0.1,128.77,128.76,22.51703612]
[1765889106997,0.1,128.77,128.76,89.78822107]
[1765889107328,0.71,128.82,128.79,8.80994492]
[1765889107527,0.71,128.82,128.8,19.35951255]
[1765889107831,0.81,128.81,128.8,19.35951255]
[1765889110198,0.1,128.81,128.8,19.35951255]
[1765889110798,0.1,128.81,128.8,20.01951255]
[1765889111107,0.1,128.81,128.8,98.00009627]
[1765889111318,0.1,128.81,128.8,97.34009627]
[1765889111528,0.1,128.81,128.8,81.05951254]
[1765889112022,0.1,128.81,128.8,78.27392006]
[1765889112208,0.1,128.81,128.8,81.05951254]
[1765889112795,0.1,128.81,128.8,81.71951254]
[1765889115411,0.1,128.81,128.8,83.27649167]
[1765889116717,0.71,128.85,128.83,8.80994492]
[1765889117026,0.71,128.85,128.83,74.85251652]
[1765889117714,9.23,128.86,128.85,8.80994492]
[1765889118425,0.71,128.86,128.85,8.80994492]
[1765889118612,0.71,128.88,128.86,8.80994492]
[1765889118794,0.71,128.88,128.86,70.50994491]
[1765889122208,0.71,128.88,128.86,78.2701484]
[1765889122526,0.71,128.89,128.88,8.80994492]
[1765889122732,0.71,128.93,128.9,8.80994492]
[1765889122900,0.71,128.93,128.91,7.75735008]
[1765889123234,0.71,128.93,128.92,8.80994492]
[1765889123416,0.81,128.94,128.92,8.80994492]
[1765889123610,0.1,128.94,128.92,13.15251653]
[1765889123912,0.81,128.94,128.92,8.80994492]
[1765889124312,0.1,128.94,128.92,13.15251653]
[1765889124707,0.1,128.94,128.92,13.81251653]
[1765889124916,0.1,128.94,128.93,16.56609166]
[1765889126428,0.1,128.94,128.93,17.22609166]
[1765889126614,0.1,128.94,128.93,21.56866327]
[1765889126815,0.1,128.94,128.93,83.46866327]
[1765889127013,0.1,128.94,128.93,96.51575447]
[1765889128018,0.71,128.98,128.96,8.80994492]
[1765889128908,0.71,128.98,128.96,16.56382418]
[1765889129324,0.71,128.99,128.96,16.56382418]
[1765889129640,0.71,128.99,128.96,21.56639579]
[1765889129836,13.0470912,129.05,128.98,13.15251653]
[1765889130039,0.71,129.05,129.04,8.80994492]
[1765889130220,0.71,129.05,129.04,4.34257161]
[1765889130421,0.71,129.08,129.05,8.80994492]
[1765889130721,0.71,129.09,129.03,8.80994492]
[1765889130911,4.34257161,129.07,129.05,8.80994492]
[1765889131122,0.71,129.06,129.03,13.15251653]
[1765889131436,4.34257161,129.08,129.05,8.80994492]
[1765889131618,0.71,129.07,129.05,8.80994492]
[1765889132242,0.71,129.12,129.05,8.80994492]
[1765889132412,28.53785265,129.13,129.05,9.46994492]
[1765889132413,0.71,129.09,129.05,9.46994492]
[1765889132614,0.71,129.09,129.07,8.80994492]
[1765889133337,0.71,129.13,129.09,9.46994492]
[1765889133511,0.67,129.14,129.11,8.80994492]
[1765889134021,0.67,129.13,129.09,7.74282357]
[1765889134218,0.67,129.11,129.1,8.80994492]
[1765889134440,0.67,129.14,129.08,13.15251653]
[1765889134749,0.67,129.13,129.08,22.70755177]
[1765889134933,0.67,129.13,129.1,13.15251653]
[1765889135134,0.67,129.14,129.1,13.15251653]
[1765889135333,0.67,129.14,129.1,9.47994492]
[1765889135533,1.81196638,129.15,129.1,16.55560995]
[1765889135719,0.67,129.13,129.1,8.80994492]
[1765889136621,0.67,129.13,129.1,20.89832098]
[1765889136840,1.81196638,129.15,129.13,8.80994492]
[1765889137139,1.81196638,129.15,129.13,13.15251653]
[1765889137326,1.81196638,129.15,129.12,5.01257161]
[1765889137515,1.81196638,129.15,129.11,13.15251653]
[1765889137516,0.67,129.14,129.11,13.15251653]
[1765889137716,0.67,129.14,129.1,8.80994492]
[1765889137921,0.67,129.14,129.1,13.15251653]
[1765889138117,0.67,129.14,129.1,13.82251653]
[1765889138314,0.67,129.14,129.1,9.47994492]
[1765889138528,0.67,129.14,129.1,13.82251653]
[1765889139042,1.81196638,129.15,129.11,5.01257161]
[1765889139214,0.67,129.14,129.1,13.82251653]
[1765889139416,0.67,129.14,129.1,13.15251653]
[1765889139754,0.67,129.1,129.09,8.80994492]
[1765889139925,0.67,129.1,129.0,5.3425716]
[1765889139926,0.67,129.1,129.06,5.01257161]
[1765889140318,0.67,129.08,129.04,4.34257161]
[1765889140649,0.67,129.08,129.02,7.75032867]
[1765889140650,0.67,129.06,129.02,0.67]
[1765889140938,5.01257161,129.08,129.03,5.01257161]
[1765889141149,0.67,129.08,129.04,8.80994492]
[1765889141318,0.67,129.09,129.04,8.80994492]
[1765889141523,0.67,129.07,129.04,8.80994492]
[1765889141828,19.36563745,129.1,129.06,8.80994492]
[1765889141829,0.67,129.09,129.06,8.80994492]
[1765889142434,0.67,129.08,129.04,4.34257161]
[1765889142621,5.01257161,129.07,129.03,9.47994492]
[1765889142818,0.67,129.07,129.03,9.47994492]
[1765889143254,0.67,129.07,129.03,13.82251653]
[1765889143433,0.67,129.07,129.03,21.57259332]
[1765889143643,5.01257161,129.07,129.03,9.47994492]
[1765889144358,12.76049904,129.07,129.03,9.47994492]
[1765889144540,12.09049904,129.07,129.03,9.47994492]
[1765889144765,12.76049904,129.07,129.03,9.47994492]
[1765889144942,8.41792743,129.07,129.03,9.47994492]
[1765889145144,5.01257161,129.08,129.04,0.67]
[1765889145331,12.08970916,129.08,129.03,16.56000193]
[1765889145537,5.01257161,129.07,129.03,9.47994492]
[1765889145858,5.01257161,129.07,129.02,7.75056504]
[1765889145859,5.01257161,129.05,129.02,8.80994492]
[1765889146155,0.67,129.03,128.99,0.67]
[1765889146366,0.67,129.03,128.98,12.08970916]
[1765889146367,0.67,129.01,128.98,7.74713755]
[1765889146528,5.01257161,129.01,128.97,0.67]
[1765889146949,4.34257161,129.02,128.98,8.42309605]
[1765889147147,5.01257161,129.02,128.98,17.23304097]
[1765889147457,0.67,129.05,129.01,22.52703612]
[1765889147678,0.67,129.04,129.01,21.85703612]
[1765889147951,4.34257161,129.04,129.0,8.80994492]
[1765889148254,0.67,129.02,128.99,8.80994492]
[1765889149160,0.67,129.0,128.98,8.80994492]
[1765889149662,0.67,129.0,128.97,8.80994492]
[1765889149834,0.67,129.02,128.97,16.56318699]
[1765889150038,5.01257161,129.02,128.98,8.42303811]
[1765889150553,5.01257161,129.02,128.98,0.67]
[1765889150749,4.34257161,129.01,128.98,0.67]
[1765889151059,5.01257161,129.0,128.97,8.80994492]
[1765889151432,5.01257161,129.01,128.97,9.47994492]
[1765889152567,5.01257161,129.0,128.97,8.80994492]
[1765889153246,4.34257161,129.0,128.97,9.47994492]
[1765889153559,4.34257161,129.01,128.97,9.47994492]
[1765889153766,5.01257161,129.01,128.97,9.47994492]
[1765889154387,0.67,129.01,128.97,21.57613531]
[1765889154839,5.01257161,129.02,128.98,0.67]
[1765889155659,0.67,129.01,128.98,0.67]
[1765889155836,0.67,129.01,128.97,21.57613531]
[1765889156137,12.76335727,129.02,128.98,0.67]
[1765889156540,0.67,129.03,129.01,8.80994492]
[1765889156848,0.67,129.03,129.0,8.80994492]
[1765889157053,5.01257161,129.03,129.0,8.80994492]
[1765889157359,0.67,129.02,129.0,8.80994492]
[1765889157555,4.34257161,129.02,128.99,8.80994492]
[1765889157745,5.01257161,129.02,128.99,8.80994492]
[1765889158955,5.01257161,129.02,128.99,9.47994492]
[1765889159336,0.67,129.02,128.99,9.47994492]
[1765889160840,0.67,129.02,128.97,5.01257161]
[1765889161041,5.01257161,129.02,128.98,9.47994492]
[1765889161641,0.67,129.02,128.98,9.47994492]
[1765889161951,5.01257161,129.02,128.98,9.47994492]
[1765889162359,0.67,129.0,128.97,8.80994492]
[1765889162747,0.67,129.0,128.95,8.80994492]
[1765889162748,0.67,128.99,128.95,8.80994492]
[1765889163069,0.67,128.99,128.95,20.90735844]
[1765889163274,0.67,128.99,128.95,13.15251653]
[1765889164069,0.67,128.99,128.95,20.90723313]
[1765889164273,0.67,128.99,128.95,12.09728821]
[1765889164572,0.66,128.97,128.93,8.80994492]
[1765889164870,7.7538247,128.97,128.95,8.80994492]
[1765889165071,0.66,128.96,128.93,8.80994492]
[1765889165245,5.00257161,128.96,128.93,8.80994492]
[1765889165564,12.75639631,128.97,128.93,9.52994492]
[1765889165874,0.66,128.96,128.93,9.52994492]
[1765889166470,7.7533286,128.98,128.93,16.56562491]
[1765889166667,0.66,129.0,128.96,0.72]
[1765889166876,12.7552136,128.99,128.95,9.52994492]
[1765889167078,7.75264199,128.99,128.95,13.87251653]
[1765889167298,4.34257161,129.0,128.93,13.0470912]
[1765889167299,0.66,129.0,128.97,9.52994492]
[1765889167789,0.66,129.0,128.97,8.80994492]
[1765889168153,0.66,129.0,128.96,8.80994492]
[1765889168154,0.66,128.99,128.96,8.80994492]
[1765889168883,5.00257161,129.0,128.96,21.62683636]
[1765889169045,8.41096656,129.02,128.99,0.72]
[1765889169244,8.41096656,129.02,128.98,13.87251653]
[1765889169481,8.41096656,129.02,128.98,9.52994492]
[1765889169659,0.66,129.01,128.97,13.86222727]
[1765889170181,0.66,129.01,128.98,4.33228235]
[1765889170493,0.66,129.01,128.98,5.05228235]
[1765889170792,0.66,129.01,128.97,21.61545479]
[1765889171464,0.66,129.0,128.97,8.80994492]
[1765889171662,0.66,128.99,128.97,8.80994492]
[1765889171864,0.66,128.97,128.95,8.80994492]
[1765889172058,8.41353009,128.98,128.95,8.80994492]
[1765889172262,8.41353009,128.98,128.94,13.0470912]
[1765889172263,0.66,128.97,128.94,8.80994492]
[1765889172806,12.74581244,128.98,128.94,9.52994492]
[1765889172968,0.66,128.98,128.94,13.86222727]
[1765889173171,0.66,128.98,128.94,21.61757596]
[1765889175470,0.66,128.98,128.94,17.28529361]
[1765889175669,4.99228235,128.98,128.94,21.61757596]
[1765889175865,4.99228235,128.98,128.92,94.33817096]
[1765889175866,0.66,128.96,128.93,8.80994492]
[1765889176491,4.99228235,128.96,128.93,8.80994492]
[1765889176788,12.74667457,128.96,128.93,8.80994492]
[1765889177372,3.43605165,128.95,128.93,8.80994492]
[1765889177584,3.43605165,128.95,128.9,22.17013862]
[1765889177585,3.43605165,128.94,128.9,8.4778911]
[1765889177786,3.43605165,128.94,128.91,8.80994492]
[1765889177787,0.66,128.93,128.91,8.80994492]
[1765889178087,0.66,128.93,128.9,7.7578911]
[1765889178088,0.66,128.93,128.9,8.80994492]
[1765889178291,2.77605165,128.93,128.9,8.80994492]
[1765889178508,3.43605165,128.93,128.9,8.80994492]
[1765889179910,3.43605165,128.93,128.9,9.52994492]
[1765889180799,3.43605165,128.93,128.9,8.80994492]
[1765889181112,2.77605165,128.93,128.9,8.80994492]
[1765889181304,0.66,128.92,128.89,8.80994492]
[1765889181510,8.41617744,128.93,128.89,17.28844883]
[1765889181715,11.19222909,128.93,128.89,17.28844883]
[1765889181882,0.66,128.93,128.89,20.06450048]
[1765889182089,10.53175378,128.94,128.9,0.72]
[1765889182409,0.66,128.94,128.91,0.72]
[1765889182583,0.66,128.94,128.9,3.49605165]
[1765889182787,3.43605165,128.94,128.9,0.72]
[1765889183024,0.66,128.93,128.9,0.72]
[1765889183394,0.66,128.93,128.9,8.47795043]
[1765889183588,0.66,128.92,128.89,8.80994492]
[1765889183784,3.43605165,128.92,128.89,8.80994492]
[1765889184231,0.14684906,128.9,128.89,8.80994492]
[1765889184525,0.14684906,128.9,128.89,70.70994492]
[1765889184730,0.80684906,128.9,128.89,70.70994492]
[1765889185912,0.80684906,128.9,128.87,8.80994492]
[1765889185913,0.66,128.89,128.87,8.80994492]
[1765889186146,0.66,128.87,128.82,0.72]
[1765889186415,2.77605165,128.85,128.82,61.9]
[1765889186599,3.43605165,128.86,128.84,8.80994492]
[1765889186803,0.66,128.86,128.83,8.80994492]
[1765889186995,3.43605165,128.86,128.83,9.52994492]
[1765889187196,0.66,128.84,128.83,8.80994492]
[1765889187401,8.10838081,128.84,128.81,9.00994492]
[1765889187594,0.66,128.84,128.81,9.00994492]
[1765889187796,15.86975489,128.85,128.81,9.72994492]
[1765889187998,8.10838081,128.84,128.81,9.72994492]
[1765889189207,8.42137408,128.85,128.81,9.72994492]
[1765889189418,7.44838081,128.84,128.81,9.72994492]
[1765889189600,0.66,128.83,128.81,16.77325481]
[1765889189787,15.86953603,128.85,128.81,17.49325481]
[1765889190193,0.66,128.88,128.84,0.72]
[1765889190421,7.44838081,128.87,128.84,0.72]
[1765889190598,8.10838081,128.87,128.83,9.52994492]
[1765889190923,8.10838081,128.86,128.83,9.52994492]
[1765889191310,0.66,128.84,128.82,8.80994492]
[1765889191512,8.10838081,128.83,128.82,8.80994492]
[1765889191703,15.210548,128.83,128.81,0.2]
[1765889191907,8.10838081,128.82,128.81,0.2]
[1765889193804,15.87115056,128.82,128.81,0.2]
[1765889195229,15.21115056,128.82,128.81,0.2]
[1765889195534,15.86115056,128.82,128.81,0.2]
[1765889196930,15.21067295,128.83,128.81,0.2]
[1765889197126,7.76229214,128.83,128.81,0.2]
[1765889197348,15.86067295,128.83,128.81,0.2]
[1765889197524,8.09838081,128.82,128.81,0.2]
[1765889198735,15.86115056,128.82,128.81,0.2]
[1765889201033,8.09838081,128.85,128.83,8.80994492]
[1765889201236,7.7616662,128.84,128.83,8.80994492]
[1765889202325,7.7616662,128.84,128.81,9.72994492]
[1765889204138,0.15279902,128.82,128.81,9.72994492]
[1765889205733,0.15279902,128.82,128.81,0.2]
[1765889206249,7.91556877,128.82,128.81,0.2]
[1765889207757,11.34672203,128.82,128.81,0.2]
[1765889209329,14.12787529,128.82,128.81,0.2]
[1765889209916,11.34672203,128.82,128.81,0.2]
[1765889211017,8.56556877,128.82,128.81,0.2]
[1765889211231,11.34672203,128.82,128.81,0.2]
[1765889212754,14.12787529,128.82,128.81,0.2]
[1765889213460,16.01991388,128.82,128.81,0.2]
[1765889220857,15.36991388,128.82,128.81,0.2]
[1765889221039,7.91556877,128.82,128.81,0.92]
[1765889221638,7.91556877,128.82,128.81,9.72994492]
[1765889223063,7.76239215,128.83,128.81,9.00994492]
[1765889223258,7.76239215,128.83,128.82,0.72]
[1765889223742,7.76208051,128.84,128.83,0.71]
[1765889224060,0.14372684,128.84,128.83,9.51994492]
[1765889224280,7.90529157,128.84,128.83,8.80994492]
[1765889224566,7.90529157,128.84,128.81,0.2]
[1765889224567,16.01963668,128.84,128.81,0.2]
[1765889224732,8.11434511,128.82,128.81,0.2]
[1765889226234,7.76397515,128.8,128.79,0.71]
[1765889226446,26.86216778,128.82,128.79,0.71]
[1765889227273,7.7635246,128.81,128.79,0.71]
[1765889229458,7.76264651,128.83,128.79,0.71]
[1765889229753,7.76264651,128.83,128.81,9.51994492]
[1765889230154,7.76264651,128.83,128.8,8.80994492]
[1765889230155,7.45434511,128.82,128.8,8.80994492]
[1765889230457,7.7633724,128.81,128.78,0.71]
[1765889231668,15.21771751,128.81,128.78,0.71]
[1765889231876,7.45434511,128.79,128.77,9.00994492]
[1765889232240,15.21930657,128.79,128.77,9.00994492]
[1765889232542,7.76496146,128.79,128.77,9.71994492]
[1765889233847,7.76397515,128.8,128.77,9.71994492]
[1765889234059,15.21832026,128.8,128.77,9.71994492]
[1765889234360,15.87832026,128.8,128.77,9.71994492]
[1765889235162,7.45434511,128.81,128.78,0.71]
[1765889235847,7.45434511,128.81,128.79,8.80994492]
[1765889236163,7.45434511,128.81,128.79,9.51994492]
[1765889236564,0.66,128.82,128.79,9.51994492]
[1765889236765,8.11209515,128.8,128.78,61.9]
[1765889236940,7.45209515,128.79,128.78,61.9]
[1765889237141,26.86060971,128.81,128.78,8.80994492]
[1765889237346,27.52060971,128.81,128.78,9.51994492]
[1765889237948,27.52060971,128.81,128.78,8.80994492]
[1765889238154,15.21624638,128.8,128.78,8.80994492]
[1765889238469,34.62618426,128.8,128.77,0.91]
[1765889238971,15.21624638,128.8,128.77,0.91]
[1765889239174,7.76415123,128.8,128.78,8.80994492]
[1765889239375,19.87549199,128.8,128.78,8.80994492]
[1765889239571,12.11134076,128.79,128.77,0.91]
[1765889240546,19.87643978,128.79,128.77,0.91]
[1765889240971,7.76509902,128.79,128.77,0.91]
[1765889242053,8.42509902,128.79,128.77,0.2]
[1765889242257,7.76509902,128.79,128.77,0.91]
[1765889243277,27.83391303,128.8,128.77,0.2]
[1765889244159,0.16206117,128.78,128.77,0.2]
[1765889244753,0.16206117,128.78,128.77,0.91]
[1765889245353,7.92724209,128.78,128.77,0.91]
[1765889245766,7.92724209,128.78,128.77,0.2]
[1765889248472,7.92724209,128.78,128.77,0.91]
[1765889249175,0.16206117,128.78,128.77,9.71994492]
[1765889250553,0.16206117,128.78,128.77,91.49706963]
[1765889257281,0.16206117,128.78,128.77,79.38572887]
[1765889257456,0.16206117,128.78,128.77,91.49706963]
[1765889263088,8.46221759,128.83,128.8,8.80994492]
[1765889263278,8.46221759,128.83,128.8,9.52994492]
[1765889264084,0.7,128.8,128.77,0.2]
[1765889264288,8.46502829,128.79,128.77,0.2]
[1765889264591,0.7,128.78,128.77,0.2]
[1765889264913,5.04490709,128.78,128.77,0.2]
[1765889265291,0.6,128.75,128.69,0.72]
[1765889265467,4.94490709,128.73,128.69,0.72]
[1765889266365,7.76880049,128.72,128.69,0.72]
[1765889266693,7.76880049,128.72,128.7,8.80994492]
[1765889267464,7.76880049,128.72,128.7,9.52994492]
[1765889267999,7.76880049,128.72,128.7,8.80994492]
[1765889268370,7.76880049,128.72,128.69,8.80994492]
[1765889268779,7.768197,128.73,128.7,0.72]
[1765889269180,7.76774292,128.74,128.72,8.80994492]
[1765889269380,7.76717346,128.75,128.72,8.80994492]
[1765889269710,7.76658323,128.76,128.74,8.80994492]
[1765889269883,7.76597642,128.77,128.74,9.52994492]
[1765889270910,0.76398717,128.81,128.76,0.72]
[1765889271204,12.88718299,128.81,128.77,9.52994492]
[1765889272002,7.76406969,128.8,128.77,9.52994492]
[1765889273091,20.48726551,128.8,128.76,9.52994492]
[1765889273290,0.6,128.79,128.76,8.80994492]
[1765889273488,39.29720339,128.8,128.76,8.80994492]